fUST/lending_fUST_20251026
["ID","MTS","AMOUNT","RATE_DAILY","PERIOD"]
[392388418,1761418432758,-1529.79,0.00016438,2]
[392388419,1761418432785,-500.0,0.00016438,2]
[392388420,1761418432817,-500.0,0.00016438,2]
[392388421,1761418432844,-1300.57,0.00016438,2]
[392388422,1761418433100,-1293.74,0.00016438,2]
[392388423,1761418433130,-715.21,0.00016438,2]
[392388424,1761418433158,-500.0,0.00016438,2]
[392388425,1761418433187,-500.0,0.00016438,2]
[392388426,1761418433216,-847.07,0.00016438,2]
[392388427,1761418433244,-514.5,0.00016438,2]
[392388428,1761418433277,-500.0,0.00016438,2]
[392388429,1761418433328,-500.0,0.00016438,2]
[392388430,1761418433357,-500.0,0.00016438,2]
[392388431,1761418433387,-500.0,0.00016438,2]
[392388432,1761418433414,-500.0,0.00016438,2]
[392388433,1761418433444,-500.0,0.00016438,2]
[392388434,1761418433473,-500.0,0.00016438,2]
[392388435,1761418433501,-467.63087812,0.00016438,2]
[392388436,1761418433529,-722.83,0.00016438,2]
[392388437,1761418433557,-500.0,0.00016438,2]
[392388438,1761418433586,-119.08824376,0.00016438,2]
[392388439,1761418433788,-380.91175624,0.00016438,2]
[392388440,1761418433819,-204.28754504,0.00016438,2]
[392388441,1761418433849,-564.63,0.00016438,2]
[392388442,1761418433879,-910.16,0.00016438,2]
[392388443,1761418433908,-500.0,0.00016438,2]
[392388444,1761418433939,-871.71,0.00016438,2]
[392388445,1761418433967,-500.0,0.00016438,2]
[392388446,1761418434356,-500.0,0.00016438,2]
[392388447,1761418434386,-500.0,0.00016438,2]
[392388448,1761418434572,-500.0,0.00016438,2]
[392388449,1761418434601,-500.0,0.00016438,2]
[392388450,1761418434629,-500.0,0.00016438,2]
[392388451,1761418434657,-500.0,0.00016438,2]
[392388452,1761418434689,-1523.36,0.00016438,2]
[392388453,1761418434723,-1174.02,0.00016438,2]
[392388454,1761418434894,-1196.73,0.00016438,2]
[392388455,1761418434927,-500.0,0.00016438,2]
[392388456,1761418434957,-500.0,0.00016438,2]
[392388457,1761418434989,-500.0,0.00016438,2]
[392388458,1761418435019,-500.0,0.00016438,2]
[392388459,1761418435051,-982.88,0.00016438,2]
[392388460,1761418435083,-500.0,0.00016438,2]
[392388461,1761418435114,-140.79,0.00016438,2]
[392388462,1761418435243,-359.21,0.00016438,2]
[392388463,1761418435270,-500.0,0.00016438,2]
[392388464,1761418435298,-500.0,0.00016438,2]
[392388465,1761418435327,-500.0,0.00016438,2]
[392388466,1761418435356,-500.0,0.00016438,2]
[392388467,1761418435386,-600.49,0.00016438,2]
[392388468,1761418435417,-500.0,0.00016438,2]
[392388469,1761418435445,-500.0,0.00016438,2]
[392388470,1761418435476,-500.0,0.00016438,2]
[392388471,1761418435507,-500.0,0.00016438,2]
[392388472,1761418444651,-300.0,0.00016437,2]
[392388473,1761418444678,-500.0,0.00016438,2]
[392388474,1761418444708,-500.0,0.00016438,2]
[392388475,1761418444736,-500.0,0.00016438,2]
[392388476,1761418444765,-824.84,0.00016438,2]
[392388477,1761418444793,-500.0,0.00016438,2]
[392388478,1761418444822,-500.0,0.00016438,2]
[392388479,1761418444852,-890.54,0.00016438,2]
[392388480,1761418445034,-1033.14,0.00016438,2]
[392388481,1761418445066,-974.68,0.00016438,2]
[392388482,1761418445093,-500.0,0.00016438,2]
[392388483,1761418445121,-500.0,0.00016438,2]
[392388484,1761418445151,-1686.15,0.00016438,2]
[392388485,1761418445545,-612.07,0.00016438,2]
[392388486,1761418445573,-500.0,0.00016438,2]
[392388487,1761418445604,-500.0,0.00016438,2]
[392388488,1761418445634,-1230.93,0.00016438,2]
[392388489,1761418445665,-663.87,0.00016438,2]
[392388490,1761418445694,-500.0,0.00016438,2]
[392388491,1761418445730,-511.01,0.00016438,2]
[392388492,1761418445761,-464.25,0.00016438,2]
[392388493,1761418445814,-35.75,0.00016438,2]
[392388494,1761418445845,-1976.1,0.00016438,2]
[392388495,1761418445874,-1231.97,0.00016438,2]
[392388496,1761418445905,-1728.79,0.00016438,2]
[392388497,1761418446158,-54.79,0.00016438,2]
[392388498,1761418446185,-1115.92,0.00016438,2]
[392388499,1761418446213,-500.0,0.00016438,2]
[392388500,1761418446240,-594.81,0.00016438,2]
[392388501,1761418446267,-870.59,0.00016438,2]
[392388502,1761418446294,-500.0,0.00016438,2]
[392388503,1761418446322,-500.0,0.00016438,2]
[392388504,1761418446349,-500.0,0.00016438,2]
[392388505,1761418446377,-91.09,0.00016438,2]
[392388506,1761418446420,-545.61,0.00016438,2]
[392388507,1761418446447,-500.0,0.00016438,2]
[392388508,1761418446473,-500.0,0.00016438,2]
[392388509,1761418446500,-500.0,0.00016438,2]
[392388510,1761418446526,-500.0,0.00016438,2]
[392388511,1761418446554,-758.85,0.00016438,2]
[392388512,1761418446582,-538.23,0.00016438,2]
[392388513,1761418446610,-962.2,0.00016438,2]
[392388514,1761418456704,-4969.43107856,0.00016274,2]
[392388515,1761418456832,-61.14784288,0.00016274,2]
[392388516,1761418456867,-390.23,0.00016438,2]
[392388517,1761418456895,-500.0,0.00016438,2]
[392388518,1761418456922,-500.0,0.00016438,2]
[392388519,1761418456949,-500.0,0.00016438,2]
[392388520,1761418456975,-864.19,0.00016438,2]
[392388521,1761418457003,-464.15040024,0.00016438,2]
[392388522,1761418457030,-500.0,0.00016438,2]
[392388523,1761418457058,-500.0,0.00016438,2]
[392388524,1761418457085,-500.0,0.00016438,2]
[392388525,1761418457218,-500.0,0.00016438,2]
[392388526,1761418457244,-500.0,0.00016438,2]
[392388527,1761418457270,-1000.0,0.00016438,2]
[392388528,1761418457297,-500.0,0.00016438,2]
[392388529,1761418457326,-788.87,0.00016438,2]
[392388530,1761418457354,-758.93,0.00016438,2]
[392388531,1761418457382,-500.0,0.00016438,2]
[392388532,1761418457411,-404.41,0.00016438,2]
[392388533,1761418457535,-95.59,0.00016438,2]
[392388534,1761418457564,-500.0,0.00016438,2]
[392388535,1761418457590,-677.92,0.00016438,2]
[392388536,1761418457618,-500.0,0.00016438,2]
[392388537,1761418457644,-773.95,0.00016438,2]
[392388538,1761418457671,-500.0,0.00016438,2]
[392388539,1761418457698,-500.0,0.00016438,2]
[392388540,1761418457730,-1440.11,0.00016438,2]
[392388541,1761418488774,500.0,0.00016132,2]
[392388542,1761418488854,442.95345627,0.00016132,2]
[392388543,1761418488890,500.0,0.00016132,2]
[392388544,1761418489000,500.0,0.00016132,2]
[392388545,1761418489058,500.0,0.00016132,2]
[392388546,1761418489300,507.92948428,0.00016132,2]
[392388547,1761418489345,603.74687939,0.00016437,2]
[392388548,1761418489376,500.0,0.00016132,2]
[392388549,1761418489703,500.0,0.00016132,2]
[392388550,1761418495395,500.0,0.00016437,2]
[392388551,1761418495540,603.74687939,0.00016437,2]
[392388552,1761418496036,500.0,0.00016132,2]
[392388553,1761418496177,500.0,0.00016437,2]
[392388554,1761418497081,500.0,0.00016132,2]
[392388555,1761418497113,255.68650483,0.00016132,2]
[392388556,1761418497147,603.74687939,0.00016437,2]
[392388557,1761418497176,500.0,0.00016437,2]
[392388558,1761418497208,603.74687939,0.00016437,2]
[392388559,1761418497235,500.0,0.00016437,2]
[392388560,1761418497267,378.45303706,0.00016437,2]
[392388561,1761418497288,225.29384233,0.00016437,2]
[392388562,1761418497319,500.0,0.00016437,2]
[392388563,1761418497346,603.74687939,0.00016437,2]
[392388564,1761418497383,500.0,0.00016437,2]
[392388565,1761418497411,603.74687939,0.00016437,2]
[392388566,1761418497443,500.0,0.00016132,2]
[392388567,1761418497471,603.74687939,0.00016437,2]
[392388568,1761418497502,500.0,0.00016437,2]
[392388569,1761418497528,603.74687939,0.00016437,2]
[392388570,1761418497559,500.0,0.00016132,2]
[392388571,1761418497595,603.74687939,0.00016437,2]
[392388572,1761418497627,500.0,0.00016437,2]
[392388573,1761418497656,603.74687939,0.00016437,2]
[392388574,1761418497688,500.0,0.00016437,2]
[392388575,1761418497716,603.74687939,0.00016437,2]
[392388576,1761418497758,603.74687939,0.00016437,2]
[392388577,1761418497790,500.0,0.00016437,2]
[392388578,1761418497822,603.74687939,0.00016437,2]
[392388579,1761418497855,340.99424316,0.00016132,2]
[392388580,1761418497879,159.00575684,0.00016132,2]
[392388581,1761418497913,603.74687939,0.00016437,2]
[392388582,1761418497950,500.0,0.00016132,2]
[392388583,1761418497979,603.74687939,0.00016437,2]
[392388584,1761418498009,500.0,0.00016437,2]
[392388585,1761418498037,603.74687939,0.00016437,2]
[392388586,1761418498079,603.74687939,0.00016437,2]
[392388587,1761418498109,500.0,0.00016437,2]
[392388588,1761418498140,603.74687939,0.00016437,2]
[392388589,1761418498175,603.74687939,0.00016437,2]
[392388590,1761418498210,603.74687939,0.00016437,2]
[392388591,1761418498241,603.74687939,0.00016437,2]
[392388592,1761418498271,603.74687939,0.00016437,2]
[392388593,1761418498305,603.74687939,0.00016437,2]
[392388594,1761418498333,603.74687939,0.00016437,2]
[392388595,1761418498360,603.74687939,0.00016437,2]
[392388596,1761418498393,603.74687939,0.00016437,2]
[392388597,1761418498429,492.29481109,0.00016437,2]
[392388598,1761418514351,-196.0,0.00016,2]
[392388599,1761418514381,-196.0,0.00016025,2]
[392388600,1761418514408,-196.0,0.00016049,2]
[392388601,1761418514436,-196.0,0.00016074,2]
[392388602,1761418514464,-196.0,0.00016099,2]
[392388603,1761418514491,-196.0,0.00016124,2]
[392388604,1761418514518,-196.0,0.00016148,2]
[392388605,1761418514546,-196.0,0.00016173,2]
[392388606,1761418514577,-196.0,0.00016198,2]
[392388607,1761418514605,-196.0,0.00016222,2]
[392388608,1761418514633,-196.0,0.00016247,2]
[392388609,1761418514661,-196.0,0.00016272,2]
[392388610,1761418514689,-196.0,0.00016296,2]
[392388611,1761418514717,-196.0,0.00016321,2]
[392388612,1761418514750,-763.84132079,0.00016338,2]
[392388613,1761418514780,-196.0,0.00016346,2]
[392388614,1761418514809,-196.0,0.00016371,2]
[392388615,1761418514836,-196.0,0.00016395,2]
[392388616,1761418514863,-164.26999066,0.000164,2]
[392388617,1761418514891,-196.0,0.0001642,2]
[392388618,1761418514918,-300.0,0.00016436,2]
[392388619,1761418514946,-187.7873771,0.00016436,2]
[392388620,1761418520413,5000.0,0.00016133,2]
[392388621,1761418528198,828.76165408,0.00016133,2]
[392388622,1761418543896,4171.24834592,0.00016133,2]
[392388623,1761418543925,828.75165408,0.00016133,2]
[392388624,1761418563538,300.0,0.00016132,2]
[392388625,1761418566743,3678.84390678,0.00016133,2]
[392388626,1761418572307,199.24870391,0.00015919,2]
[392388627,1761418589543,831.858709,0.00016133,2]
[392388628,1761418622437,300.0,0.00016132,2]
[392388633,1761418628537,168.86009,7.69e-05,2]
[392388634,1761418628736,168.86009,0.00010253,2]
[392388635,1761418628931,168.86009,0.00012816,2]
[392388636,1761418629153,168.86009,0.00015379,2]
[392388637,1761418629400,196.0,0.00016,2]
[392388638,1761418629686,196.0,0.00016028,2]
[392388639,1761418630003,196.0,0.00016055,2]
[392388640,1761418630291,196.0,0.00016083,2]
[392388641,1761418630649,196.0,0.00016111,2]
[392388642,1761418639177,205.85647838,0.000161,2]
[392388643,1761418657879,1200.0,0.00016132,2]
[392388645,1761418664382,-169.24885918,0.00016133,2]
[392388646,1761418665878,-202.58352448,0.00016133,2]
[392388647,1761418667313,-128.16761634,0.00016133,2]
[392388648,1761418667336,-67.83238366,0.00016133,2]
[392388649,1761418667682,800.01018785,0.00013699,2]
[392388650,1761418667704,387.88843615,0.00013699,2]
[392388651,1761418684119,169.2409197,0.00016133,2]
[392388652,1761418694296,153.0,8.3e-07,2]
[392388653,1761418695018,-242.26056156,0.00016133,2]
[392388654,1761418695344,153.0,8.3e-07,2]
[392388655,1761418698063,-189.90705478,0.00016133,2]
[392388656,1761418698091,-80.96266444,0.00016133,2]
[392388657,1761418698125,153.0,8.3e-07,2]
[392388658,1761418700421,-196.0,0.00016133,2]
[392388659,1761418703775,-223.03733556,0.00016133,2]
[392388660,1761418703796,-127.2505305,0.00016133,2]
[392388661,1761418706416,-207.99762457,0.00016133,2]
[392388662,1761418709213,-164.75184493,0.00016133,2]
[392388663,1761418709234,-31.2505305,0.00016133,2]
[392388664,1761418711471,-196.0,0.00016133,2]
[392388665,1761418725919,404.19351013,0.00015677,2]
[392388666,1761418727352,727.54831823,0.00015921,2]
[392388667,1761418751100,196.0,0.00016,2]
[392388668,1761418751232,196.0,0.0001603,2]
[392388669,1761418751533,-272.7494695,0.00016133,2]
[392388670,1761418752064,196.0,0.0001606,2]
[392388671,1761418752404,196.0,0.0001609,2]
[392388672,1761418752690,196.0,0.0001612,2]
[392388673,1761418762486,153.45650045,0.00016045,2]
[392388674,1761418766532,-205.85647838,0.00016145,2]
[392388675,1761418871046,196.0,0.00016,2]
[392388676,1761418871321,196.0,0.0001603,2]
[392388677,1761418871650,196.0,0.00016059,2]
[392388678,1761418871954,196.0,0.00016089,2]
[392388679,1761418872245,196.0,0.00016118,2]
[392388680,1761418872555,196.0,0.00016148,2]
[392388681,1761418874992,381.90947395,0.00015985,2]
[392388682,1761418899269,7382.3977462,0.00015284,2]
[392388683,1761418904495,-217.37243874,0.0001615,2]
[392388684,1761418906427,-281.98690413,0.0001615,2]
[392388685,1761418906502,-0.64065713,0.0001615,2]
[392388686,1761418906531,-500.0,0.0001615,2]
[392388687,1761418906568,-500.0,0.0001615,2]
[392388688,1761418906598,-500.0,0.0001615,2]
[392388689,1761418906625,-1293.4192324,0.00016165,2]
[392388690,1761418906654,-196.0,0.00016177,2]
[392388691,1761418906682,-500.0,0.000162,2]
[392388692,1761418906710,-196.0,0.00016207,2]
[392388693,1761418906740,-196.0,0.00016237,2]
[392388694,1761418906768,-201.08053283,0.00016243,2]
[392388695,1761418907164,-1833.72915528,0.00016243,2]
[392388696,1761418909324,-8723.07,0.00016255,2]
[392388697,1761418909357,-1941.24073911,0.00016255,2]
[392388698,1761418909385,-205.85647838,0.00016257,2]
[392388699,1761418909447,-7852.91278251,0.0001626,2]
[392388700,1761418909510,-1941.24073911,0.0001626,2]
[392388701,1761418909574,-205.85647838,0.0001626,2]
[392388702,1761418909588,-664.30073908,0.0001626,2]
[392388703,1761418909598,-196.0,0.00016266,2]
[392388704,1761418909607,-196.0,0.00016296,2]
[392388705,1761418909618,-196.0,0.00016325,2]
[392388706,1761418909627,-436.46797023,0.00016326,2]
[392388707,1761418909636,-300.0,0.00016335,2]
[392388708,1761418909645,-300.0,0.00016336,2]
[392388709,1761418909655,-300.0,0.00016336,2]
[392388710,1761418909665,-300.0,0.00016336,2]
[392388711,1761418909676,-1200.0,0.00016336,2]
[392388712,1761418909686,-300.0,0.00016336,2]
[392388713,1761418909695,-500.0,0.00016336,2]
[392388714,1761418909703,-500.0,0.00016336,2]
[392388715,1761418909712,-317.04685571,0.00016336,2]
[392388716,1761418909727,-182.95314429,0.00016336,2]
[392388717,1761418909737,-500.0,0.00016336,2]
[392388718,1761418909750,-500.0,0.00016336,2]
[392388719,1761418909760,-461.40721007,0.00016336,2]
[392388720,1761418909769,-500.0,0.00016336,2]
[392388721,1761418909778,-500.0,0.00016336,2]
[392388722,1761418909787,-461.47779718,0.00016336,2]
[392388723,1761418909798,-500.0,0.00016336,2]
[392388724,1761418909808,-500.0,0.00016336,2]
[392388725,1761418909819,-500.0,0.00016336,2]
[392388726,1761418909828,-500.0,0.00016336,2]
[392388727,1761418909838,-369.16423241,0.00016336,2]
[392388728,1761418909848,-500.0,0.00016336,2]
[392388729,1761418909859,-500.0,0.00016336,2]
[392388730,1761418909868,-500.0,0.00016336,2]
[392388731,1761418909878,-500.0,0.00016336,2]
[392388732,1761418909888,-500.0,0.00016336,2]
[392388733,1761418909898,-500.0,0.00016336,2]
[392388734,1761418909909,-500.0,0.00016336,2]
[392388735,1761418909919,-500.0,0.00016336,2]
[392388736,1761418909929,-500.0,0.00016336,2]
[392388737,1761418909938,-25.00761605,0.00016336,2]
[392388738,1761418915502,-10000.01,0.00016264,2]
[392388739,1761418916137,-664.30073908,0.00016264,2]
[392388740,1761418916172,-8671.40852184,0.00016269,2]
[392388741,1761418916275,-1992.90221724,0.00016269,2]
[392388742,1761418916309,-6014.20556552,0.00016273,2]
[392388743,1761418916372,-4650.10517356,0.00016273,2]
[392388744,1761418916402,-224.80726893,0.00016336,2]
[392388745,1761418916438,-250.18511502,0.00016336,2]
[392388746,1761418916511,-500.0,0.00016336,2]
[392388747,1761418916542,-500.0,0.00016336,2]
[392388748,1761418916570,-500.0,0.00016336,2]
[392388749,1761418916885,-500.0,0.00016336,2]
[392388750,1761418916917,-500.0,0.00016336,2]
[392388751,1761418916948,-500.0,0.00016336,2]
[392388752,1761418916978,-500.0,0.00016336,2]
[392388753,1761418917008,-500.0,0.00016336,2]
[392388754,1761418917037,-500.0,0.00016336,2]
[392388755,1761418917067,-500.0,0.00016336,2]
[392388756,1761418917176,-500.0,0.00016336,2]
[392388757,1761418917206,-500.0,0.00016336,2]
[392388758,1761418917234,-500.0,0.00016336,2]
[392388759,1761418917263,-500.0,0.00016336,2]
[392388760,1761418917296,-500.0,0.00016336,2]
[392388761,1761418917323,-500.0,0.00016336,2]
[392388762,1761418917352,-500.0,0.00016336,2]
[392388763,1761418917383,-500.0,0.00016336,2]
[392388764,1761418917411,-500.0,0.00016336,2]
[392388765,1761418917437,-223.10464609,0.00016336,2]
[392388766,1761418917468,-53.80070782,0.00016336,2]
[392388767,1761418917517,-446.19929218,0.00016336,2]
[392388768,1761418917547,-500.0,0.00016336,2]
[392388769,1761418917577,-500.0,0.00016336,2]
[392388770,1761418917605,-500.0,0.00016336,2]
[392388771,1761418917634,-500.0,0.00016336,2]
[392388772,1761418917663,-500.0,0.00016336,2]
[392388773,1761418917691,-500.0,0.00016336,2]
[392388774,1761418917718,-500.0,0.00016336,2]
[392388775,1761418917747,-500.0,0.00016336,2]
[392388776,1761418917776,-500.0,0.00016336,2]
[392388777,1761418917853,-500.0,0.00016336,2]
[392388778,1761418917882,-500.0,0.00016336,2]
[392388779,1761418917914,-500.0,0.00016336,2]
[392388780,1761418917944,-500.0,0.00016336,2]
[392388781,1761418917975,-500.0,0.00016336,2]
[392388782,1761418918009,-500.0,0.00016336,2]
[392388783,1761418918041,-500.0,0.00016336,2]
[392388784,1761418918075,-500.0,0.00016336,2]
[392388785,1761418918106,-500.0,0.00016336,2]
[392388786,1761418918137,-500.0,0.00016336,2]
[392388787,1761418918259,-500.0,0.00016336,2]
[392388788,1761418918289,-500.0,0.00016336,2]
[392388789,1761418918321,-500.0,0.00016336,2]
[392388790,1761418918357,-500.0,0.00016336,2]
[392388791,1761418918387,-500.0,0.00016336,2]
[392388792,1761418918417,-500.0,0.00016336,2]
[392388793,1761418918448,-500.0,0.00016336,2]
[392388794,1761418918477,-403.67169781,0.00016336,2]
[392388795,1761418918507,-500.0,0.00016336,2]
[392388796,1761418918539,-500.0,0.00016336,2]
[392388797,1761418918615,-500.0,0.00016336,2]
[392388798,1761418918643,-500.0,0.00016336,2]
[392388799,1761418918670,-500.0,0.00016336,2]
[392388800,1761418918698,-500.0,0.00016336,2]
[392388801,1761418918726,-500.0,0.00016336,2]
[392388802,1761418918754,-500.0,0.00016336,2]
[392388803,1761418918782,-500.0,0.00016336,2]
[392388804,1761418918811,-500.0,0.00016336,2]
[392388805,1761418918837,-500.0,0.00016336,2]
[392388806,1761418918866,-500.0,0.00016336,2]
[392388807,1761418919121,-450.0,0.00016336,2]
[392388808,1761418919151,-500.0,0.00016336,2]
[392388809,1761418919184,-500.0,0.00016336,2]
[392388810,1761418919213,-500.0,0.00016336,2]
[392388811,1761418919462,-500.0,0.00016336,2]
[392388812,1761418919491,-500.0,0.00016336,2]
[392388813,1761418919520,-500.0,0.00016336,2]
[392388814,1761418919548,-426.44988465,0.00016337,2]
[392388815,1761418919575,-271.58654872,0.00016337,2]
[392388816,1761418919602,-175.82429853,0.00016337,2]
[392388817,1761418920616,-299.09646495,0.00016338,2]
[392388818,1761418920629,-271.58654872,0.00016338,2]
[392388819,1761418920642,-175.82429853,0.00016338,2]
[392388820,1761418920655,-1352.2885362,0.00016338,2]
[392388821,1761418920668,-10000.01,0.00016338,2]
[392388822,1761418920682,-10000.01,0.00016338,2]
[392388823,1761418920694,-10000.01,0.00016338,2]
[392388824,1761418920707,-10000.01,0.00016338,2]
[392388825,1761418922252,-10000.01,0.00016338,2]
[392388826,1761418922406,-10000.01,0.00016338,2]
[392388827,1761418922806,-10000.01,0.00016338,2]
[392388828,1761418922824,-10000.01,0.00016338,2]
[392388829,1761418922859,-10000.01,0.00016338,2]
[392388830,1761418923000,-10000.01,0.00016338,2]
[392388831,1761418923137,-10000.01,0.00016338,2]
[392388832,1761418923260,-10000.01,0.00016338,2]
[392388833,1761418923714,-300.0,0.00016337,2]
[392388834,1761418923941,-9400.01,0.00016338,2]
[392388835,1761418924013,-10000.01,0.00016338,2]
[392388836,1761418924027,-10000.01,0.00016338,2]
[392388837,1761418924066,-10000.01,0.00016338,2]
[392388838,1761418924193,-10000.01,0.00016338,2]
[392388839,1761418924339,-10000.01,0.00016338,2]
[392388840,1761418924493,-10000.01,0.00016338,2]
[392388841,1761418927582,-756.93517522,0.00016236,2]
[392388842,1761418927618,-8486.13964956,0.00016338,2]
[392388843,1761418927813,-10000.01,0.00016338,2]
[392388844,1761418927916,-10000.01,0.00016338,2]
[392388845,1761418928092,-10000.01,0.00016338,2]
[392388846,1761418928209,-10000.01,0.00016338,2]
[392388847,1761418928346,-10000.01,0.00016338,2]
[392388848,1761418928467,-10000.01,0.00016338,2]
[392388849,1761418928591,-10000.01,0.00016338,2]
[392388850,1761418928707,-10000.01,0.00016338,2]
[392388851,1761418928872,-10000.01,0.00016338,2]
[392388852,1761418929026,-10000.01,0.00016338,2]
[392388853,1761418929171,-10000.01,0.00016338,2]
[392388854,1761418929279,-10000.01,0.00016338,2]
[392388855,1761418929402,-10000.01,0.00016338,2]
[392388856,1761418929526,-10000.01,0.00016338,2]
[392388857,1761418954927,-164.843851,0.00015409,2]
[392388858,1761418954958,-460.82854146,0.00016013,2]
[392388859,1761418959661,164.843851,0.00015255,2]
[392388860,1761418964707,265.060681,0.00019,6]
[392388861,1761418970154,-460.82854146,0.00016175,2]
[392388862,1761418971296,1413.9909216,0.00015409,2]
[392388863,1761418975568,5000.0,0.00016175,2]
[392388864,1761418983340,2664.36199548,0.00016175,2]
[392388865,1761418983365,2335.63800452,0.00016175,2]
[392388866,1761418988392,196.0,0.00016,2]
[392388867,1761418988719,196.0,0.00016029,2]
[392388868,1761418989017,196.0,0.00016058,2]
[392388869,1761418989547,196.0,0.00016086,2]
[392388870,1761418989828,196.0,0.00016115,2]
[392388871,1761418990662,196.0,0.00016144,2]
[392388872,1761418990998,196.0,0.00016173,2]
[392388873,1761418991302,196.0,0.00016201,2]
[392388874,1761418991602,196.0,0.0001623,2]
[392388875,1761418991887,196.0,0.00016259,2]
[392388876,1761418992218,196.0,0.00016288,2]
[392388877,1761418992543,196.0,0.00016316,2]
[392388878,1761418993645,300.0,0.000163,2]
[392388879,1761418998437,5000.0,0.00016336,2]
[392388880,1761419002277,-441.58718578,0.00016336,2]
[392388881,1761419004057,300.0,0.000163,2]
[392388882,1761419006267,5000.0,0.00016336,2]
[392388883,1761419012385,160.036683,0.00019,6]
[392388884,1761419014400,300.0,0.000163,2]
[392388885,1761419024723,300.0,0.000163,2]
[392388887,1761419035417,300.0,0.000163,2]
[392388888,1761419042484,300.0,0.00016336,2]
[392388889,1761419046143,300.0,0.000163,2]
[392388890,1761419052309,300.0,0.000163,2]
[392388891,1761419052389,5000.0,0.00016337,2]
[392388893,1761419060824,300.0,0.000163,2]
[392388894,1761419063938,300.0,0.000163,2]
[392388895,1761419067939,833.16976175,0.00016337,2]
[392388896,1761419071048,300.0,0.000163,2]
[392388897,1761419071934,259.77169073,0.00016336,2]
[392388898,1761419071991,421.59192823,0.00016336,2]
[392388899,1761419073218,500.0,0.00016336,2]
[392388900,1761419073247,500.0,0.00016336,2]
[392388901,1761419073284,85.47661929,0.00016336,2]
[392388902,1761419073308,414.52338071,0.00016336,2]
[392388903,1761419073339,500.0,0.00016336,2]
[392388904,1761419073369,500.0,0.00016336,2]
[392388905,1761419073400,500.0,0.00016336,2]
[392388906,1761419073430,500.0,0.00016336,2]
[392388907,1761419073457,500.0,0.00016336,2]
[392388908,1761419073486,500.0,0.00016336,2]
[392388909,1761419073517,508.65656354,0.00016336,2]
[392388910,1761419073546,500.0,0.00016336,2]
[392388911,1761419073574,500.0,0.00016336,2]
[392388912,1761419073600,500.0,0.00016336,2]
[392388913,1761419073634,500.0,0.00016336,2]
[392388914,1761419073660,500.0,0.00016336,2]
[392388915,1761419073687,500.0,0.00016336,2]
[392388916,1761419073713,500.0,0.00016336,2]
[392388917,1761419073745,500.0,0.00016336,2]
[392388918,1761419073775,500.0,0.00016336,2]
[392388919,1761419073804,500.0,0.00016336,2]
[392388920,1761419073836,500.0,0.00016336,2]
[392388921,1761419073865,395.39047965,0.00016336,2]
[392388922,1761419073913,181.4395761,0.00016336,2]
[392388923,1761419073938,318.5604239,0.00016336,2]
[392388924,1761419073966,500.0,0.00016336,2]